Cogmind - Beta 12 @@@ ROGUE MODE // 2023.03.31 @ 22:00:53 Player: Rohain Result: Destroyed by S-10 Pest with Light Assault Rifle Performance ------------- Evolutions (1) 500 Regions Visited (3) 600 Robots Destroyed (12) 60 Value Destroyed (216) 216 Prototype IDs (0) 0 Alien Tech Used (0) 0 Bonus (0) 0 TOTAL SCORE: 1376 Bonus ------- None Cogmind --------- Core Integrity 0/400 Matter 300/300 Energy 99/100 System Corruption 0% Temperature Cool (0) Movement Core (350) Ox6 Location -9/Materials Parts ------- > --- POWER (1) -------- (None) > --- PROPULSION (4) --- (None) > --- UTILITY (2) ------ Large Storage Unit Sensor Array > --- WEAPON (2) ------- (None) > --- INVENTORY (15) --- Ion Engine Small Storage Unit Light Armor Plating Small Laser Light Cannon Peak State ------------ > --- POWER ------------ Ion Engine > --- PROPULSION ------- Aluminum Leg Aluminum Leg Aluminum Leg Aluminum Leg > --- UTILITY ---------- Small Storage Unit Sensor Array > --- WEAPON ----------- Small Laser Small Laser > --- INVENTORY -------- Ion Engine Aluminum Leg Light Armor Plating Small Laser Small Laser Light Cannon [Rating: 9] Favorites ----------- Power Ion Engine Engine Ion Engine Propulsion Aluminum Leg Leg Aluminum Leg Utility Small Storage Unit Device Sensor Array Storage Small Storage Unit Weapon Small Laser Energy Gun Small Laser Build | -11 -10 -10 -9 ------- Run | Jun Mat Min Mat Slots Evolved 2 | . . . 2 Power . | . . . . Propulsion 2 | . . . 2 Utility . | . . . . Weapon . | . . . . Parts Attached 19 | 6 7 1 5 Power 2 | 1 1 . . Engine 2 | 1 1 . . Core . | . . . . Reactor . | . . . . Propulsion 9 | 2 3 1 3 Treads . | . . . . Leg 9 | 2 3 1 3 Wheel . | . . . . Hover . | . . . . Flight . | . . . . Utility 3 | 1 1 . 1 Device 1 | . 1 . . Storage 2 | 1 . . 1 Processor . | . . . . Hackware . | . . . . Protection . | . . . . Artifact . | . . . . Weapon 5 | 2 2 . 1 Energy Gun 5 | 2 2 . 1 Energy Cannon . | . . . . Ballistic Gun . | . . . . Ballistic Cannon . | . . . . Launcher . | . . . . Special Weapon . | . . . . Impact Weapon . | . . . . Slashing Weapon . | . . . . Piercing Weapon . | . . . . Special Melee Weapon . | . . . . Unidentified Prototypes . | . . . . Parts Lost 10 | . 1 . 9 Power 1 | . . . 1 Propulsion 5 | . . . 5 Utility . | . . . . Weapon 4 | . 1 . 3 Highest Loss Streak 9 | . 1 . 9 To Critical Strikes . | . . . . Average Slot Usage (%) 90 | . 87 100 90 Engine 13 | . 14 14 9 Leg 29 | . 28 28 38 Device 6 | . 2 14 11 Storage 13 | . 14 14 11 Energy Gun 26 | . 28 28 20 Naked Turns . | . . . . Heaviest Build 28 | 13 13 13 28 Greatest Support 40 | 20 20 20 40 Greatest Overweight (x) 7 | . . . 7 Average Overweight (x) . | . . . . Largest Inventory Capacity 15 | 8 8 8 15 Average Capacity 8 | 6 8 8 11 Most Carried 8 | 4 8 8 7 Average Carried 6 | 1 5 8 6 Final Capacity 15 | 8 8 8 15 Final Carried 8 | 2 8 8 5 Class Distribution -------------------- 65% | Mutant 34% | Scavenger-Mutant Dominant Class ---------------- Mutant | -10/Materials Scavenger-Mutant | -10/Mines Scavenger-Mutant | -9/Materials Resources | -11 -10 -10 -9 ----------- Run | Jun Mat Min Mat Matter Collected 370 | 129 201 10 30 Remotely . | . . . . Salvage Created 279 | . 279 . . Parts 18 | . 18 . . Haulers Intercepted . | . . . . Recyclers Shooed . | . . . . Parts Field Recycled . | . . . . Retrieved Matter . | . . . . Parts Self-Destructed . | . . . . Prevented . | . . . . Kills | -11 -10 -10 -9 ------- Run | Jun Mat Min Mat Combat Hostiles Destroyed 12 | . 12 . . Guns 12 | . 12 . . Classes Destroyed 2 | . 2 . . Swarmer 8 | . 8 . . Grunt 4 | . 4 . . Best Kill Streak 4 | . 4 . . Combat Bots Only 4 | . 4 . . Max Kills in Single Turn 2 | . 2 . . Gunslinging 1 | . 1 . . Exploded . | . . . . Melee . | . . . . Uniques/NPCs Destroyed . | . . . . Combat | -11 -10 -10 -9 -------- Run | Jun Mat Min Mat Damage Taken 1306 | . 440 . 866 Core 474 | . 71 . 403 Absorbed by Shields . | . . . . Core Remaining (%) 85 | 100 . 71 . Volleys Fired 31 | . 26 . 5 Largest 2 | . 2 . 2 Hottest 90 | . 90 . 80 Shots Fired 62 | . 52 . 10 Gun 62 | . 52 . 10 Cannon . | . . . . Launcher . | . . . . Special . | . . . . Kinetic . | . . . . Thermal 62 | . 52 . 10 Explosive . | . . . . Electromagnetic . | . . . . Robot Hit Streak 9 | . 9 . 3 Robot Miss Streak 7 | . 7 . 2 Penetration Max . | . . . . Secondary Targets 2 | . 2 . . Max Gunslinging Chain 1 | . 1 . . Shots Hit Robots 38 | . 34 . 4 Core Hits 20 | . 19 . 1 Critical Kills . | . . . . Critical Parts Destroyed . | . . . . Critical Strikes 3 | . 3 . . Burn 3 | . 3 . . Melee Attacks . | . . . . Impact . | . . . . Slashing . | . . . . Piercing . | . . . . Sneak Attacks . | . . . . Combat Hostiles . | . . . . Follow-up Attacks . | . . . . Damage Inflicted 459 | . 416 . 43 Guns 459 | . 416 . 43 Cannons . | . . . . Explosions . | . . . . Melee . | . . . . Ramming . | . . . . Kinetic . | . . . . Thermal 459 | . 416 . 43 Explosive . | . . . . Electromagnetic . | . . . . Impact . | . . . . Slashing . | . . . . Piercing . | . . . . Highest Corruption . | . . . . Average Corruption . | . . . . Corruption Purged . | . . . . Corruption Blocked . | . . . . Overload Shots . | . . . . Overflow Damage . | . . . . Projectiles . | . . . . Explosions . | . . . . Melee . | . . . . Knockbacks . | . . . . Impact . | . . . . Kinetic . | . . . . Secondary . | . . . . Self-Inflicted Damage . | . . . . Shots . | . . . . Rammed . | . . . . Targets Rammed . | . . . . Kicked . | . . . . Crushed . | . . . . Highest Temperature 238 | . 238 . 27 Average Temperature 92 | . 104 . 12 Received Heat Transfer 240 | . 78 . 162 Siege Activations . | . . . . Robots Corrupted . | . . . . Combat Hostiles . | . . . . Parts Fried . | . . . . Impact Corruptions . | . . . . Robots Melted . | . . . . Combat Hostiles . | . . . . Parts Melted 1 | . 1 . . Heat Transferred 1414 | . 1314 . 100 Parts Sabotaged . | . . . . Parts Stolen . | . . . . Parts Stripped . | . . . . Power Chain Reactions . | . . . . Missiles Intercepted . | . . . . Alert | -11 -10 -10 -9 ------- Run | Jun Mat Min Mat Peak Influence 248 | . 248 34 13 Initial 34 | . . 34 13 Average 73 | . 113 34 10 Maximum Alert Level 1 | . 1 . . Low Security (%) 88 | 100 80 100 100 Level 1 11 | . 19 . . Level 2 . | . . . . Level 3 . | . . . . Level 4 . | . . . . Level 5 . | . . . . High Security . | . . . . Max Security . | . . . . Squads Dispatched 3 | . 2 . 1 Investigation 1 | . 1 . . Extermination . | . . . . Reinforcement 2 | . 1 . 1 Assault . | . . . . Garrison . | . . . . Intercept . | . . . . Searches Triggered . | . . . . Construction Impeded . | . . . . Haulers Reinforced . | . . . . Active Scanning Responses . | . . . . Cargo Convoy Interrupts . | . . . . Stealth | -11 -10 -10 -9 --------- Run | Jun Mat Min Mat Distress Signals 1 | . 1 . . Communications Jammed . | . . . . Distress Signals . | . . . . Times Spotted 28 | . 17 . 11 Peak Tracking Total 11 | . 6 . 11 Tactical Retreats . | . . . . Traps | -11 -10 -10 -9 ------- Run | Jun Mat Min Mat Traps Triggered 1 | . 1 . . Indirectly . | . . . . Trap Hack Attempts . | . . . . Triggered . | . . . . Disarmed . | . . . . Reprogrammed . | . . . . Reused . | . . . . Traps Extracted . | . . . . Installed . | . . . . Triggered . | . . . . Machines | -11 -10 -10 -9 ---------- Run | Jun Mat Min Mat Machines Disabled . | . . . . Max in Single Turn . | . . . . Machines Repaired . | . . . . Machines Sabotaged . | . . . . Overloaded Fab Kills . | . . . . Hacking | -11 -10 -10 -9 --------- Run | Jun Mat Min Mat Machines Accessed 5 | . 5 . . Terminals 5 | . 5 . . Fabricators . | . . . . Repair Stations . | . . . . Recycling Units . | . . . . Scanalyzers . | . . . . Garrison Access . | . . . . Total Hacks 13 | . 13 . . Successful 4 | . 4 . . Failed 9 | . 9 . . Catastrophic 1 | . 1 . . Database Lockouts . | . . . . Manual 13 | . 13 . . Terminals 13 | . 13 . . Fabricators . | . . . . Repair Stations . | . . . . Recycling Units . | . . . . Scanalyzers . | . . . . Garrison Access . | . . . . Terminal Hacks . | . . . . Fabricator Hacks . | . . . . Repair Station Hacks . | . . . . Recycling Unit Hacks . | . . . . Scanalyzer . | . . . . Garrison Access Hacks . | . . . . Unauthorized Hacks 4 | . 4 . . Terminals 4 | . 4 . . Botnet 4 | . 4 . . Fabricators . | . . . . Repair Stations . | . . . . Recycling Units . | . . . . Scanalyzers . | . . . . Garrison Access . | . . . . Data Cores Recovered . | . . . . Used . | . . . . Hacking Detections 5 | . 5 . . Full Trace Events 2 | . 2 . . Feedback Events . | . . . . Feedback Blocked . | . . . . Robot Schematics Acquired . | . . . . Robots Built . | . . . . Authchips . | . . . . Time . | . . . . Total Robot Build Rating . | . . . . Part Schematics Acquired . | . . . . Parts Built . | . . . . Authchips . | . . . . Time . | . . . . Total Part Build Rating . | . . . . Parts Repaired . | . . . . Time . | . . . . Parts Recycled . | . . . . Recycled Matter . | . . . . Retrieved Matter . | . . . . Retrieved Components . | . . . . Parts Scanalyzed . | . . . . Part Schematics Acquired . | . . . . Parts Damaged . | . . . . Bothacking | -11 -10 -10 -9 ------------ Run | Jun Mat Min Mat Used RIF Installer . | . . . . Robots Hacked . | . . . . Non-combat . | . . . . Combat . | . . . . Robot Hacks Applied . | . . . . Relay Couplers Released . | . . . . Fabnet Peak Effective % . | . . . . Robots Rewired . | . . . . Allies Hacked . | . . . . Hacks Repelled . | . . . . Allies | -11 -10 -10 -9 -------- Run | Jun Mat Min Mat Total Allies . | . . . . Largest Group . | . . . . Highest-Rated Group . | . . . . Highest-Rated Ally . | . . . . Total Orders . | . . . . Ally Attacks . | . . . . Total Damage . | . . . . Kills . | . . . . Allies Corrupted . | . . . . Allies Melted . | . . . . Intel | -11 -10 -10 -9 ------- Run | Jun Mat Min Mat Robot Analysis Total . | . . . . Derelict Logs Recovered . | . . . . Drone Launches . | . . . . Drone Recoveries . | . . . . Exploration | -11 -10 -10 -9 ------------- Run | Jun Mat Min Mat Turns Passed 986 | 46 564 201 175 Spaces Moved 685 | 31 371 167 116 Core 9 | 3 . . 6 Treads . | . . . . Legs 676 | 28 371 167 110 Wheels . | . . . . Hover . | . . . . Flight . | . . . . Fastest Speed 50 | 50 120 120 120 Average Speed 122 | 113 120 120 135 Slowest Speed 400 | 120 120 120 400 Overloaded Moves . | . . . . Propulsion Burnouts . | . . . . Robots Hopped . | . . . . Cave-ins Triggered . | . . . . Exploration Rate (%) 34 | 4 77 47 11 Regions Visited 3 Branch Regions 1 Pre-discovered Areas . | . . . . Known Exits Taken . | . . . . Unknown Exits Taken 3 | 1 1 1 . Scrap Searched 1 | . . 1 . Spaces Dug . | . . . . Terrain Destroyed . | . . . . Melee . | . . . . Projectile . | . . . . AOE . | . . . . Terrain Rammed . | . . . . Walls Destroyed . | . . . . Machines Disabled . | . . . . Actions | -11 -10 -10 -9 --------- Run | Jun Mat Min Mat Total 769 | 40 436 167 126 Wait 26 | . 26 . . Move 682 | 30 370 166 116 Hop . | . . . . Pick Up 9 | 4 5 . . Fast Attach 5 | 4 1 . . Attach 7 | 2 1 . 4 Detach . | . . . . Swap 7 | . 5 1 1 Drop 2 | . 2 . . Fire 31 | . 26 . 5 Melee . | . . . . Ram . | . . . . Kick . | . . . . Crush . | . . . . Escape Stasis . | . . . . Rewire . | . . . . Trap . | . . . . Miscellaneous . | . . . . Route ------- -11/Junkyard -10/Materials (discovered 2 exits: [*Mat] / [*Min]) -10/Mines -9/Materials History --------- Turn | Location | Event 15 | -11/Junkyard | Discovered new exit (range 16) 47 | -11/Junkyard | Entered Materials 130 | -10/Materials | Discovered new exit (range 16) 303 | -10/Materials | Build established: Mutant 385 | -10/Materials | Discovered new exit (range 13) 611 | -10/Materials | Entered Mines 757 | -10/Mines | Discovered new exit (range 11) 812 | -10/Mines | Entered Materials 812 | -9/Materials | Evolved 2 slots: Propulsion x2 895 | -9/Materials | Met 8R-AWN 925 | -9/Materials | Build established: Scavenger-Mutant 980 | -9/Materials | Core integrity fell below 50% 985 | -9/Materials | Core integrity fell below 20% 987 | -9/Materials | Destroyed by S-10 Pest with Light Assault Rifle Last Messages --------------- 8R-AWN: Wow you are some kind of weird tech. All alone out here little buddy? I'll take you somewhere safer. Try to keep up. And don't worry about patrols, I'll take care of them if they get in the way. 00896_ K-01 Serf collects debris. 00898_ R-06 Scavenger collects Lgt. Ion Engine. 00901_ K-01 Serf collects debris. 00914_ Acquired 20 matter. 00916_ Acquired 10 matter. 00927_ K-01 Serf collects debris. 00953_ Sml. Laser destroyed. 00954_ Aluminum Leg destroyed. 00959_ Ion Engine destroyed. 00961_ Aluminum Leg destroyed. 00966_ K-01 Serf destroyed. 00969_ Aluminum Leg destroyed. 00970_ Sml. Laser destroyed. 00978_ K-01 Serf collects debris. 00979_ S-10 Pest destroyed. 00982_ K-01 Serf collects debris. Map ----- +----------------------------------------------------+ | ?????????????????????????????????????????????????? | | ?????????????????????????????????????????????????? | | ?????????????????????????????????????????????????? | | ?????????????????????????????????? ???????????? | | ?????????????????????????????????? #??????????? | | ?????????????????????????????????? #??????????? | | ?????????????????????????????????? +??????????? | | ?????????????????????????????????? #??????????? | | ????????????? ?????????????????? #??????????? | | ????????????? ????????????????? #??????????? | | ????????????? ????????????????? #??????????? | | ????????????# #?????????????????# #??????????? | | ????????????# #?????????????????# #??????????? | | ????????????# #????????#????????# #??????????? | | ????????????# #????????# ??????# #??????????? | | ????????????# #????????# | ????# #??????????? | | ????????????# ?#????????# ??# ###+####???? | | ????????????# #????????? """ # #???? | | ????????????# ?#??????????""""" + +???? | | ????????????# #??????????""""" # #???? | | ????????????# #???????????""""??# ##### ##???? | | ????????????# #???????????""????# #??????????? | | ????????????# #?????????????????# #??????????? | | ?????########k%g################### #??????????? | | ?????# ! gY s #??????????? | | ?????# ug g[l @ #??????????? | | ?????# u s=g #??????????? | | ?????# #### ################ #??????????? | | ?????# #??# #??????????????# #??????????? | | ?????# #??#]]!!]]#??????????????# #??????????? | | ###### #??#]]!!]]#??????????????# #####??????? | | #??########??????????????# #??????? | | #????????????????????????# #??????? | | #????????????????????????# #??????? | | ########????????????????????????#########??????? | | #??????????????????????????????????????????????? | | #??????????????????????????????????????????????? | | #??????????????????????????????????????????????? | | #??????????????????????????????????????????????? | | #??????????????????????????????????????????????? | | #??????????????????????????????????????????????? | | #??????????????????????????????????????????????? | | #??????????????????????????????????????????????? | | #??????????????????????????????????????????????? | | ==#### #?????????????????????????????????????? | | =% * [ ????????????????????????????????? | | % % T ????????????????????????????????? | | %= ??????????????????????????????????? | | ##+### * ####??????????????????????????????????? | | ?? ??? ##?????????????????????????????????????? | +----------------------------------------------------+ Best States ------------- Heat Dissipation 28 Energy Generation 10 Energy Capacity 250 Matter Stores 300 Matter Capacity 300 Sight Range 16 Robot Scan Range 14 Terrain Scan Density 10 Evasion (%) 55 Item Schematics ----------------- None Robot Schematics ------------------ None Fabricated ------------ Nothing Alien Tech Used ----------------- None Achievements -------------- None Challenges ------------ None Game ------ Seed FieldMolecularEngine Manual? 0 Play Time 00:08:01 Cumulative 27.4 hours Start 2023.03.31 @ 21:54:05 End 2023.03.31 @ 22:00:53 Sessions 1 Manual Loads 0 Difficulty Rogue Special Mode None Game No. 47 Rogue 31 Adventurer 16 Explorer 0 Win Type - Total 1 Types 1/0/0/0/0/0/0/0/0 Lore% 20 Gallery% 37 Achievement% 34 Wizard Run 0 Options --------- ASCII 0 Keyboard 0 Movement Mouse Keybinds 0 Fullscreen 1 Font 18/SmallcapsGlow Map View 76x50 Tactical HUD 1 Map Filters NONE Filters NONE Steam 1 RUN: 11d6ff83-efc6-47b6-b49e-420892cc72ba